bitfinex-derivatives/quotes_BTCF0:USTF0_20230701
["timestamp","ask_amount","ask_price","bid_price","bid_amount"]
[1688179961225,0.32531305,30445.0,30444.0,0.15085067]
[1688179962117,0.32531305,30445.0,30444.0,0.07156577]
[1688179962619,0.32531305,30445.0,30444.0,0.08979546]
[1688179962815,0.32531305,30445.0,30444.0,0.07156577]
[1688179964226,0.32531305,30445.0,30444.0,0.05271632]
[1688179965221,0.32531305,30445.0,30444.0,0.18373339]
[1688179965718,0.32531305,30445.0,30444.0,0.20196308]
[1688179965919,0.65621305,30445.0,30444.0,0.20196308]
[1688179966119,0.65621305,30445.0,30444.0,0.15092118]
[1688179966423,0.65621305,30445.0,30444.0,0.16915087]
[1688179967015,0.65621305,30445.0,30444.0,0.18800032]
[1688179967523,0.65621305,30445.0,30444.0,0.08979546]
[1688179968726,0.65621305,30445.0,30444.0,0.07156577]
[1688179969226,0.65621305,30445.0,30444.0,0.08979546]
[1688179971327,0.65621305,30445.0,30444.0,0.41997058]
[1688179972215,0.65621305,30445.0,30444.0,0.43820027]
[1688179972416,0.65621305,30445.0,30444.0,0.22081253]
[1688179972720,0.65621305,30445.0,30444.0,0.43820217]
[1688179972915,0.63650305,30445.0,30444.0,0.43820217]
[1688179973514,0.63650305,30445.0,30444.0,0.3071851]
[1688179974221,0.30560305,30445.0,30444.0,0.3071851]
[1688179975224,0.30560305,30445.0,30444.0,0.6590851]
[1688179975410,0.30560305,30445.0,30444.0,0.64023565]
[1688179977014,0.30560305,30445.0,30444.0,0.6590851]
[1688179977215,0.32531305,30445.0,30444.0,0.28895541]
[1688179977520,0.32531305,30445.0,30444.0,0.27010596]
[1688179978022,0.32531305,30445.0,30444.0,0.4340296]
[1688179978825,0.3434616,30445.0,30444.0,0.4340296]
[1688179979015,0.32531305,30445.0,30444.0,0.4340296]
[1688179980221,0.32531305,30445.0,30444.0,0.45287905]
[1688179980825,0.32531305,30445.0,30444.0,0.47110874]
[1688179981117,0.32531305,30445.0,30444.0,0.3071851]
[1688179981323,0.32531305,30445.0,30444.0,0.28895541]
[1688179981725,0.32531305,30445.0,30444.0,0.27010596]
[1688179982036,0.32531305,30445.0,30444.0,0.25039496]
[1688179982228,0.3434616,30445.0,30444.0,0.38156445]
[1688179983920,0.3434616,30445.0,30444.0,0.74236445]
[1688179985633,0.32531305,30445.0,30444.0,0.74236445]
[1688179985832,0.3434616,30445.0,30444.0,0.74236445]
[1688179986028,0.32531305,30445.0,30444.0,0.38156445]
[1688179986237,0.32531305,30445.0,30444.0,0.74236445]
[1688179987243,0.32531305,30445.0,30444.0,0.38156445]
[1688179987642,0.32531305,30445.0,30444.0,0.74236445]
[1688179988743,0.32531305,30445.0,30444.0,0.61119496]
[1688179990135,0.32531305,30445.0,30444.0,0.6482741]
[1688179990339,0.32531305,30445.0,30444.0,0.61119496]
[1688179990641,0.32531305,30445.0,30444.0,0.63090596]
[1688179991641,0.32531305,30445.0,30444.0,0.61119496]
[1688179991838,0.3434616,30445.0,30444.0,0.74241627]
[1688179993334,0.3434616,30445.0,30444.0,0.74250842]
[1688179994134,0.32531305,30445.0,30444.0,0.74250842]
[1688179995245,0.3434616,30445.0,30444.0,0.74250842]
[1688179995850,0.3434616,30445.0,30444.0,0.52511878]
[1688179996346,0.3434616,30445.0,30444.0,0.45961063]
[1688179997137,0.32531305,30445.0,30444.0,0.45961063]
[1688179997738,0.32531305,30445.0,30444.0,0.47932163]
[1688179998444,0.3434616,30445.0,30444.0,0.47932163]
[1688179998842,0.32531305,30445.0,30444.0,0.47932163]
[1688179999146,0.32531305,30445.0,30444.0,0.51640077]
[1688179999447,0.32531305,30445.0,30444.0,0.47932163]
[1688180000046,0.3434616,30445.0,30444.0,0.47932163]
[1688180000242,0.32531305,30445.0,30444.0,0.47932163]
[1688180000656,0.3434616,30445.0,30444.0,0.47932163]
[1688180002358,0.3434616,30445.0,30444.0,0.47943746]
[1688180002853,0.32531305,30445.0,30444.0,0.47943746]
[1688180003862,0.32531305,30445.0,30444.0,0.43206013]
[1688180004151,0.32531305,30445.0,30444.0,0.41383044]
[1688180004345,0.32531305,30445.0,30444.0,0.43267989]
[1688180008170,0.32531305,30445.0,30444.0,0.41383044]
[1688180009065,0.30560305,30445.0,30444.0,0.78067987]
[1688180009263,0.30560305,30445.0,30444.0,0.79952932]
[1688180010470,0.30560305,30445.0,30444.0,0.79972197]
[1688180010766,0.32531305,30445.0,30444.0,0.79972197]
[1688180011169,0.32531305,30445.0,30444.0,0.68073784]
[1688180011363,0.32531305,30445.0,30444.0,0.54951653]
[1688180011556,0.32531305,30445.0,30444.0,0.53128684]
[1688180012357,0.32531305,30445.0,30444.0,0.54951653]
[1688180013062,0.32531305,30445.0,30444.0,0.53128684]
[1688180013263,0.32531305,30445.0,30444.0,0.49272639]
[1688180013463,0.32531305,30445.0,30444.0,0.45973819]
[1688180013966,0.3434616,30445.0,30444.0,0.45973819]
[1688180014362,0.32531305,30445.0,30444.0,0.45973819]
[1688180014758,0.32531305,30445.0,30444.0,0.47944919]
[1688180014967,0.32531305,30445.0,30444.0,0.41383014]
[1688180016166,0.32531305,30445.0,30444.0,0.45090928]
[1688180016774,0.32531305,30445.0,30444.0,0.43267959]
[1688180016972,0.32531305,30445.0,30444.0,0.43205983]
[1688180017272,0.32531305,30445.0,30444.0,0.51224444]
[1688180017664,0.32531305,30445.0,30444.0,0.54932358]
[1688180018676,0.32531305,30445.0,30444.0,0.79952903]
[1688180018878,0.32531305,30445.0,30444.0,0.78129934]
[1688180019063,0.32531305,30445.0,30444.0,0.79952903]
[1688180020469,0.32531305,30445.0,30444.0,0.76244989]
[1688180020674,0.32531305,30445.0,30444.0,0.78129934]
[1688180021078,0.32531305,30445.0,30444.0,0.79952903]
[1688180021477,0.32531305,30445.0,30444.0,0.79972198]
[1688180021677,0.32531305,30445.0,30444.0,0.66850067]
[1688180022374,0.32531305,30445.0,30444.0,0.78159562]
[1688180022577,0.32531305,30445.0,30444.0,0.79982531]
[1688180022777,0.32531305,30445.0,30444.0,0.79982264]
[1688180023279,0.32531305,30445.0,30444.0,0.66850067]
[1688180025078,0.30560305,30445.0,30444.0,0.66850067]
[1688180025378,0.30560305,30445.0,30444.0,0.83242431]
[1688180025877,0.32531305,30445.0,30444.0,0.83242431]
[1688180026481,0.32531305,30445.0,30444.0,0.83223136]
[1688180027371,0.32531305,30445.0,30444.0,0.83242431]
[1688180028076,0.27601776,30445.0,30444.0,0.83242431]
[1688180028374,0.25630776,30445.0,30444.0,0.83242431]
[1688180031176,0.27601776,30445.0,30444.0,0.83242431]
[1688180033671,0.27601776,30445.0,30444.0,0.54961026]
[1688180038084,0.27601776,30445.0,30444.0,0.91041026]
[1688180041176,0.27601776,30445.0,30444.0,1.02929818]
[1688180041484,0.27601776,30445.0,30444.0,1.01044873]
[1688180042482,0.27601776,30445.0,30444.0,1.19322182]
[1688180042675,0.27601776,30445.0,30444.0,1.01044873]
[1688180043295,0.27601776,30445.0,30444.0,0.97250804]
[1688180043587,0.27601776,30445.0,30444.0,0.74307446]
[1688180043977,0.29416631,30445.0,30444.0,0.74307446]
[1688180045384,0.29416631,30445.0,30444.0,0.74276598]
[1688180045798,0.29416631,30445.0,30444.0,0.76247698]
[1688180045989,0.27601776,30445.0,30444.0,0.76247698]
[1688180047291,0.29416631,30445.0,30444.0,0.76247698]
[1688180048391,0.27601776,30445.0,30444.0,0.40167698]
[1688180049093,0.27601776,30445.0,30444.0,0.38196598]
[1688180049396,0.29416631,30445.0,30444.0,0.38196598]
[1688180049595,0.29416631,30445.0,30444.0,0.03320361]
[1688180049894,0.29416631,30445.0,30444.0,0.16457003]
[1688180050689,0.27601776,30445.0,30444.0,0.16457003]
[1688180050879,0.27601776,30445.0,30444.0,0.38197853]
[1688180051087,0.27601776,30445.0,30444.0,0.16457003]
[1688180051484,0.29416631,30445.0,30444.0,0.16457003]
[1688180052696,0.27601776,30445.0,30444.0,0.03320361]
[1688180052992,0.29416631,30445.0,30444.0,0.03320361]
[1688180055794,0.29416631,30445.0,30444.0,0.13172317]
[1688180056093,0.27601776,30445.0,30444.0,0.07028275]
[1688180056293,0.27601776,30445.0,30444.0,0.11773125]
[1688180056684,0.27601776,30445.0,30444.0,0.13596094]
[1688180057489,0.27601776,30445.0,30444.0,0.11773125]
[1688180057890,0.27601776,30445.0,30444.0,0.0988818]
[1688180058382,0.27601776,30445.0,30444.0,0.1185928]
[1688180059596,0.27601776,30445.0,30444.0,0.4793928]
[1688180061097,0.27601776,30445.0,30444.0,0.41371461]
[1688180061297,0.27601776,30445.0,30444.0,0.49761846]
[1688180061501,0.27601776,30445.0,30444.0,0.4319443]
[1688180061697,0.27601776,30445.0,30444.0,0.51646728]
[1688180062099,0.27601776,30445.0,30444.0,0.4319443]
[1688180063797,0.27601776,30445.0,30444.0,0.78071081]
[1688180064299,0.27601776,30445.0,30444.0,0.79956026]
[1688180064485,0.27601776,30445.0,30444.0,0.78133057]
[1688180064683,0.27601776,30445.0,30444.0,0.79956026]
[1688180067393,0.27601776,30445.0,30444.0,0.76248112]
[1688180067603,0.29416631,30445.0,30444.0,0.76248112]
[1688180067903,0.27601776,30445.0,30444.0,0.76248112]
[1688180070790,0.29416631,30445.0,30444.0,0.74277012]
[1688180070993,0.29416631,30445.0,30444.0,0.52537003]
[1688180071197,0.29416631,30445.0,30444.0,0.49251206]
[1688180071597,0.27601776,30445.0,30444.0,0.49251206]
[1688180072397,0.27601776,30445.0,30444.0,0.51136151]
[1688180073094,0.27601776,30445.0,30444.0,0.5295912]
[1688180073497,0.27601776,30445.0,30444.0,0.51167039]
[1688180074294,0.27601776,30445.0,30444.0,0.49282094]
[1688180076407,0.27601776,30445.0,30444.0,0.49262759]
[1688180077710,0.27601776,30445.0,30444.0,0.51085728]
[1688180078509,0.27601776,30445.0,30444.0,0.15025023]
[1688180078706,0.27601776,30445.0,30444.0,0.74308052]
[1688180079796,0.27601776,30445.0,30444.0,0.78015966]
[1688180080509,0.27601776,30445.0,30444.0,0.76192997]
[1688180081495,0.27601776,30445.0,30444.0,0.74308052]
[1688180082209,0.29416631,30445.0,30444.0,0.74308052]
[1688180082601,0.29416631,30445.0,30444.0,0.7430886]
[1688180082909,0.29416631,30445.0,30444.0,0.61172218]
[1688180083810,0.27601776,30445.0,30444.0,0.7430886]
[1688180084412,0.27601776,30445.0,30444.0,0.74277988]
[1688180085504,0.27601776,30445.0,30444.0,0.74289565]
[1688180085704,0.27601776,30445.0,30444.0,0.96030441]
[1688180086212,0.27601776,30445.0,30444.0,0.71009019]
[1688180088619,0.29416631,30445.0,30444.0,0.34929019]
[1688180089703,0.27601776,30445.0,30444.0,0.34929019]
[1688180090910,0.29416631,30445.0,30444.0,0.34929019]
[1688180092018,0.27601776,30445.0,30444.0,0.34929019]
[1688180093321,0.29416631,30445.0,30444.0,0.34929019]
[1688180093818,0.29416631,30445.0,30444.0,0.25072923]
[1688180095117,0.27601776,30445.0,30444.0,0.25072923]
[1688180095518,0.27601776,30445.0,30444.0,0.40032534]
[1688180095714,0.27601776,30445.0,30444.0,0.25072923]
[1688180095913,0.27601776,30445.0,30444.0,0.38209565]
[1688180096213,0.27601776,30445.0,30444.0,0.4009451]
[1688180096421,0.27601776,30445.0,30444.0,0.61835328]
[1688180096615,0.27601776,30445.0,30444.0,0.4009451]
[1688180097205,0.27601776,30445.0,30444.0,0.61835313]
[1688180097614,0.27601776,30445.0,30444.0,0.63658282]
[1688180097920,0.27601776,30445.0,30444.0,0.99738282]
[1688180098505,0.27601776,30445.0,30444.0,0.97915313]
[1688180100120,0.27601776,30445.0,30444.0,0.99738282]
[1688180100318,0.27601776,30445.0,30444.0,0.97915313]
[1688180101327,0.27601776,30445.0,30444.0,0.72892938]
[1688180101825,0.27601776,30445.0,30444.0,0.74864038]
[1688180102414,0.27601776,30445.0,30444.0,0.72979093]
[1688180103018,0.27601776,30445.0,30444.0,0.76687007]
[1688180103618,0.27601776,30445.0,30444.0,0.74864038]
[1688180104219,0.27601776,30445.0,30444.0,0.76687007]
[1688180104725,0.37461,30445.0,30444.0,0.74864038]
[1688180104927,0.37461,30445.0,30444.0,0.72979093]
[1688180105424,0.39275855,30445.0,30444.0,0.72979093]
[1688180105613,0.37461,30445.0,30444.0,0.72979093]
[1688180107023,0.37461,30445.0,30444.0,0.74802062]
[1688180107222,0.37461,30445.0,30444.0,0.61152923]
[1688180108313,0.37461,30445.0,30444.0,0.63037868]
[1688180108519,0.37461,30445.0,30444.0,0.64860837]
[1688180108726,0.37461,30445.0,30444.0,0.77997479]
[1688180110212,0.37461,30445.0,30444.0,0.7617451]
[1688180110416,0.37461,30445.0,30444.0,0.61152923]
[1688180111220,0.37461,30445.0,30444.0,0.62975892]
[1688180111419,0.37461,30445.0,30444.0,0.76112534]
[1688180111819,0.37461,30445.0,30444.0,0.74289565]
[1688180112432,0.37461,30445.0,30444.0,0.76112534]
[1688180112631,0.37461,30445.0,30444.0,0.74289565]
[1688180112832,0.37461,30445.0,30444.0,0.61152923]
[1688180113522,0.39275855,30445.0,30444.0,0.61152923]
[1688180114424,0.37461,30445.0,30444.0,0.61152923]
[1688180114623,0.39275855,30445.0,30444.0,0.61152923]
[1688180115133,0.39275855,30445.0,30444.0,0.25072923]
[1688180115329,0.37461,30445.0,30444.0,0.25072923]
[1688180115833,0.37461,30445.0,30444.0,0.03331914]
[1688180116032,0.37461,30445.0,30444.0,0.1318791]
[1688180116534,0.37461,30445.0,30444.0,0.03331944]
[1688180117123,0.37461,30445.0,30444.0,0.05303044]
[1688180117324,0.37461,30445.0,30444.0,0.09010958]
[1688180119534,0.37461,30445.0,30444.0,0.20324631]
[1688180120435,0.37461,30445.0,30444.0,0.18439686]
[1688180120935,0.37461,30445.0,30444.0,0.05303044]
[1688180121535,0.39275855,30445.0,30444.0,0.05303044]
[1688180121735,0.39275855,30445.0,30444.0,0.03331944]
[1688180121937,0.37461,30445.0,30444.0,0.03331944]
[1688180123037,0.37461,30445.0,30444.0,0.05154913]
[1688180123339,0.37461,30445.0,30444.0,0.03331944]
[1688180123836,0.37461,30445.0,30444.0,0.09902919]
[1688180124237,0.37461,30445.0,30444.0,0.09283794]
[1688180124432,0.37461,30445.0,30444.0,0.09804286]
[1688180124738,0.37461,30445.0,30444.0,0.11627255]
[1688180125240,0.37461,30445.0,30444.0,0.09804286]
[1688180125439,0.39275855,30445.0,30444.0,0.09804286]
[1688180125940,0.37461,30445.0,30444.0,0.09804286]
[1688180129139,0.39275855,30445.0,30444.0,0.09804286]
[1688180129346,0.37461,30445.0,30444.0,0.09804286]
[1688180129530,0.37461,30445.0,30444.0,0.11627255]
[1688180129837,0.019709,30447.0,30444.0,0.85648653]
[1688180130033,0.019709,30447.0,30446.0,0.3608]
[1688180130336,0.019709,30447.0,30446.0,0.38051]
[1688180130550,0.019709,30447.0,30446.0,0.40532385]
[1688180130841,0.019709,30447.0,30446.0,0.42355354]
[1688180131233,0.019709,30447.0,30446.0,0.64093217]
[1688180131434,0.0596217,30448.0,30447.0,0.01916715]
[1688180131639,0.0596217,30448.0,30447.0,0.38757861]
[1688180131835,0.0596217,30448.0,30447.0,0.02435818]
[1688180132039,0.3924217,30448.0,30447.0,0.09001663]
[1688180132540,0.41057025,30448.0,30447.0,0.09001663]
[1688180132948,0.76547025,30448.0,30447.0,0.09001663]
[1688180133242,0.76547025,30448.0,30447.0,0.02435818]
[1688180133743,0.41057025,30448.0,30447.0,0.02435818]
[1688180133948,0.76547025,30448.0,30447.0,0.02435818]
[1688180144845,1.12627025,30448.0,30447.0,0.02435818]
[1688180145646,1.12627025,30448.0,30447.0,0.00519103]
[1688180146047,0.37461,30445.0,30444.0,0.02654905]
[1688180146232,0.37461,30445.0,30444.0,0.06565845]
[1688180146435,0.39275855,30445.0,30444.0,0.06565845]
[1688180151150,0.03785855,30445.0,30444.0,0.06565845]
[1688180153851,0.03785855,30445.0,30442.0,0.11212436]
[1688180154039,0.728412,30443.0,30442.0,0.11212436]
[1688180154549,0.74656055,30443.0,30442.0,0.11212436]
[1688180156855,0.728412,30443.0,30442.0,0.11212436]
[1688180157156,0.74656055,30443.0,30442.0,0.11212436]
[1688180157355,0.728412,30443.0,30442.0,0.11212436]
[1688180158147,0.728412,30443.0,30442.0,0.47292436]
[1688180159053,0.74656055,30443.0,30442.0,0.45321236]
[1688180160340,0.74656055,30443.0,30442.0,0.02675391]
[1688180160746,0.74656055,30443.0,30439.0,0.3608]
[1688180160747,0.74656055,30443.0,30439.0,0.42645845]
[1688180160944,0.355,30440.0,30439.0,0.42645845]
[1688180161256,0.39286255,30440.0,30439.0,0.3608]
[1688180161646,0.69556255,30440.0,30439.0,0.3608]
[1688180163155,0.69556255,30440.0,30439.0,0.38738226]
[1688180164558,0.69556255,30440.0,30439.0,0.48584476]
[1688180165755,0.69556255,30440.0,30439.0,0.12504476]
[1688180165955,0.69556255,30440.0,30439.0,0.02658226]
[1688180166261,0.69556255,30440.0,30437.0,0.44070634]
[1688180166262,0.69556255,30440.0,30437.0,0.37500697]
[1688180166449,0.3548,30438.0,30437.0,0.06580697]
[1688180166650,0.374515,30438.0,30437.0,0.06580697]
[1688180167151,0.39266355,30438.0,30437.0,0.06580697]
[1688180167748,0.39266355,30438.0,30437.0,0.00018251]
[1688180167948,0.39266355,30438.0,30437.0,0.09864501]
[1688180168159,0.39266355,30438.0,30437.0,0.00018251]
[1688180168364,0.39266355,30438.0,30437.0,0.06578264]
[1688180168756,0.39266355,30438.0,30437.0,0.02707861]
[1688180169154,0.39266355,30438.0,30437.0,0.04006327]
[1688180174366,0.374515,30438.0,30437.0,0.04006327]
[1688180174964,0.374515,30438.0,30437.0,0.05977927]
[1688180175164,0.39266355,30438.0,30437.0,0.05977927]
[1688180175465,0.374515,30438.0,30437.0,0.05977927]
[1688180175760,0.3548,30438.0,30437.0,0.1253794]
[1688180176062,0.3548,30438.0,30437.0,0.19532091]
[1688180176259,0.30549556,30438.0,30437.0,0.09685841]
[1688180176458,0.019714,30439.0,30437.0,0.09685841]
[1688180176658,0.019714,30439.0,30438.0,0.11806341]
[1688180176966,0.374714,30439.0,30438.0,0.16829913]
[1688180177263,0.374714,30439.0,30438.0,0.06995072]
[1688180177961,0.371914,30439.0,30438.0,0.16829913]
[1688180178560,0.371914,30439.0,30438.0,0.14858413]
[1688180178756,0.371914,30439.0,30438.0,0.16829913]
[1688180180266,0.371914,30439.0,30438.0,0.15006944]
[1688180180267,0.374714,30439.0,30438.0,0.15006944]
[1688180180966,0.374714,30439.0,30438.0,0.07874067]
[1688180181156,0.374714,30439.0,30438.0,0.01315658]
[1688180181466,0.019714,30439.0,30438.0,0.01315658]
[1688180181660,0.70996255,30439.0,30438.0,0.01315658]
[1688180181866,1.06366255,30439.0,30438.0,0.01315658]
[1688180184857,0.70866255,30439.0,30438.0,0.01315658]
[1688180188476,0.690514,30439.0,30438.0,0.01315658]
[1688180189067,0.70866255,30439.0,30438.0,0.01315658]
[1688180197271,1.06946255,30439.0,30438.0,0.01315658]
[1688180197471,1.11946255,30439.0,30438.0,0.01315658]
[1688180198484,0.75866255,30439.0,30438.0,0.01315658]
[1688180202776,0.740514,30439.0,30438.0,0.01315658]
[1688180203477,0.75866255,30439.0,30438.0,0.01315658]
[1688180204583,1.11946255,30439.0,30438.0,0.01315658]
[1688180205079,1.456314,30439.0,30436.0,0.06558409]
[1688180205280,0.3521,30437.0,30436.0,0.06558409]
[1688180205580,0.371816,30437.0,30436.0,0.06558409]
[1688180205776,0.38996455,30437.0,30436.0,0.09143971]
[1688180206876,0.371816,30437.0,30436.0,0.09143971]
[1688180207585,0.371816,30437.0,30436.0,0.1096694]
[1688180207974,0.371816,30437.0,30436.0,0.09143971]
[1688180209779,0.371816,30437.0,30436.0,0.1096694]
[1688180209980,0.371816,30437.0,30436.0,0.12851885]
[1688180210575,0.059149,30439.0,30436.0,0.08265176]
[1688180210784,0.059149,30439.0,30438.0,0.42645473]
[1688180211087,0.414149,30439.0,30438.0,0.42645473]
[1688180211380,0.414149,30439.0,30438.0,0.44468442]
[1688180211585,0.725449,30439.0,30438.0,0.44468442]
[1688180212781,0.725449,30439.0,30438.0,0.47340449]
[1688180213684,0.414149,30439.0,30438.0,0.47340449]
[1688180213885,0.414149,30439.0,30438.0,0.40774976]
[1688180214182,0.414149,30439.0,30438.0,0.38890031]
[1688180214389,0.414149,30439.0,30438.0,0.37067062]
[1688180215781,0.715549,30439.0,30438.0,0.37067062]
[1688180216086,0.73369755,30439.0,30438.0,0.37067062]
[1688180219395,0.715549,30439.0,30438.0,0.37067062]
[1688180220397,0.73369755,30439.0,30438.0,0.37067062]
[1688180222001,0.73369755,30439.0,30438.0,0.07553164]
[1688180222290,0.73369755,30439.0,30436.0,0.09152151]
[1688180222291,0.01814855,30438.0,30436.0,0.09152151]
[1688180222491,0.726316,30437.0,30435.0,0.4592821]
[1688180222693,0.374517,30436.0,30435.0,0.4592821]
[1688180223488,0.374517,30436.0,30435.0,0.45931473]
[1688180223993,0.374517,30436.0,30435.0,0.52289495]
[1688180224193,0.374517,30436.0,30435.0,0.42438011]
[1688180224397,0.374517,30436.0,30435.0,0.38730097]
[1688180224782,0.374517,30436.0,30435.0,0.42438011]
[1688180224983,0.374517,30436.0,30435.0,0.44409711]
[1688180229999,0.374517,30436.0,30435.0,0.43262965]
[1688180230196,0.374517,30436.0,30435.0,0.41439996]
[1688180232099,0.374517,30436.0,30435.0,0.43324941]
[1688180232405,0.374517,30436.0,30435.0,0.4514791]
[1688180234191,0.374517,30436.0,30435.0,0.43262965]
[1688180234501,0.374517,30436.0,30435.0,0.41439996]
[1688180235402,0.683117,30436.0,30435.0,0.41439996]
[1688180236301,0.683117,30436.0,30435.0,0.5129487]
[1688180238496,0.683117,30436.0,30435.0,0.53117839]
[1688180238697,0.683117,30436.0,30435.0,0.5129487]
[1688180239598,0.683117,30436.0,30435.0,0.4932317]
[1688180240605,0.70126555,30436.0,30435.0,0.4932317]
[1688180240803,0.683117,30436.0,30435.0,0.4932317]
[1688180241305,0.683117,30436.0,30435.0,0.53031084]
[1688180241709,0.683117,30436.0,30435.0,0.4932317]
[1688180242800,0.683117,30436.0,30435.0,0.51146139]
[1688180243201,0.683117,30436.0,30435.0,0.53031084]
[1688180243799,0.683117,30436.0,30435.0,0.4317621]
[1688180244007,0.683117,30436.0,30435.0,0.4514791]
[1688180248622,0.683117,30436.0,30435.0,0.0906791]
[1688180248823,0.683117,30436.0,30435.0,0.4514791]
[1688180250823,0.683117,30436.0,30435.0,0.43324941]
[1688180251126,0.683117,30436.0,30435.0,0.41439996]
[1688180251322,0.683117,30436.0,30435.0,0.5129487]
[1688180252929,0.70126555,30436.0,30435.0,0.41439996]
[1688180253129,0.683117,30436.0,30435.0,0.41439996]
[1688180254129,0.683117,30436.0,30435.0,0.5129487]
[1688180254634,0.683117,30436.0,30435.0,0.4932317]
[1688180254815,0.683117,30436.0,30435.0,0.51146139]
[1688180255131,0.683117,30436.0,30435.0,0.41353241]
[1688180255529,0.683117,30436.0,30435.0,0.4317621]
[1688180256328,0.683117,30436.0,30435.0,0.53031084]
[1688180257932,0.683117,30436.0,30435.0,0.55002784]
[1688180258923,0.683117,30436.0,30435.0,0.4514791]
[1688180260225,0.683117,30436.0,30435.0,0.43324941]
[1688180260424,0.683117,30436.0,30435.0,0.4514791]
[1688180264027,0.683117,30436.0,30435.0,0.0906791]
[1688180264232,0.8468797,30436.0,30435.0,0.4514791]
[1688180265537,0.374517,30436.0,30435.0,0.4514791]
[1688180266329,0.374517,30436.0,30435.0,0.66893328]
[1688180267236,0.374517,30436.0,30435.0,0.83945692]
[1688180267937,0.374517,30436.0,30435.0,0.67553328]
[1688180269430,0.374517,30436.0,30435.0,0.63098659]
[1688180269638,0.374517,30436.0,30435.0,0.7624262]
[1688180270136,0.374517,30436.0,30435.0,0.78065589]
[1688180271537,0.374517,30436.0,30435.0,0.7624262]
[1688180271921,0.374517,30436.0,30435.0,0.78065589]
[1688180272128,0.374517,30436.0,30435.0,0.7624262]
[1688180272329,0.374517,30436.0,30435.0,0.52612257]
[1688180272836,0.39266555,30436.0,30435.0,0.39468296]
[1688180274126,0.39266555,30436.0,30435.0,0.4932669]
[1688180275036,0.374517,30436.0,30435.0,0.4932669]
[1688180275231,0.374517,30436.0,30435.0,0.44907847]
[1688180275538,0.374517,30436.0,30435.0,0.48615761]
[1688180275926,0.374517,30436.0,30435.0,0.46792792]
[1688180276128,0.374517,30436.0,30435.0,0.39468296]
[1688180279437,0.39266555,30436.0,30435.0,0.39468296]
[1688180279742,0.374517,30436.0,30435.0,0.39468296]
[1688180279942,0.39266555,30436.0,30435.0,0.39468296]
[1688180280337,0.374517,30436.0,30435.0,0.39468296]
[1688180281944,0.374517,30436.0,30435.0,0.4317621]
[1688180282332,0.374517,30436.0,30435.0,0.41353241]
[1688180282837,0.374517,30436.0,30435.0,0.39468296]
[1688180283645,0.374517,30436.0,30435.0,0.43324941]
[1688180283834,0.374517,30436.0,30435.0,0.4514791]
[1688180284242,0.374517,30436.0,30435.0,0.43324941]
[1688180284440,0.374517,30436.0,30435.0,0.4514791]
[1688180286132,0.374517,30436.0,30435.0,0.43324941]
[1688180286945,0.374517,30436.0,30435.0,0.07244941]
[1688180287146,0.374517,30436.0,30435.0,0.43324941]
[1688180288047,0.374517,30436.0,30435.0,0.53183182]
[1688180288248,0.374517,30436.0,30435.0,0.55006151]
[1688180288845,0.374517,30436.0,30435.0,0.80038324]
[1688180290746,0.374517,30436.0,30435.0,0.78215355]
[1688180291451,0.374517,30436.0,30435.0,0.80038324]
[1688180291851,0.374517,30436.0,30435.0,0.78215355]
[1688180292350,0.374517,30436.0,30435.0,0.42135355]
[1688180292651,0.374517,30436.0,30435.0,0.78215355]
[1688180294262,0.374517,30436.0,30435.0,0.7633041]
[1688180294739,0.39266555,30436.0,30435.0,0.7633041]
[1688180295143,0.374517,30436.0,30435.0,0.7633041]
[1688180296454,0.374517,30436.0,30435.0,0.78153379]
[1688180297046,0.374517,30436.0,30435.0,0.80038324]
[1688180299447,0.374517,30436.0,30435.0,0.43958324]
[1688180299654,0.374517,30436.0,30435.0,0.80038324]
[1688180304055,0.374517,30436.0,30435.0,0.55005677]
[1688180311162,0.374517,30436.0,30435.0,0.4514791]
[1688180311461,0.374517,30436.0,30435.0,0.80038032]
[1688180313662,0.374517,30436.0,30435.0,0.58291871]
[1688180313865,0.374517,30436.0,30435.0,0.41439996]
[1688180314050,0.374517,30436.0,30435.0,0.54583957]
[1688180314961,0.374517,30436.0,30435.0,0.56406926]
[1688180315150,0.374517,30436.0,30435.0,0.58291871]
[1688180317763,0.374517,30436.0,30435.0,0.80038397]
[1688180317966,0.374517,30436.0,30435.0,0.78215428]
[1688180318264,0.374517,30436.0,30435.0,0.80038397]
[1688180318666,0.374517,30436.0,30435.0,0.58291871]
[1688180318861,0.374517,30436.0,30435.0,0.4514791]
[1688180319668,0.374517,30436.0,30435.0,0.43325141]
[1688180320363,0.374517,30436.0,30435.0,0.4514811]
[1688180320951,0.374517,30436.0,30435.0,0.0906811]
[1688180321155,0.374517,30436.0,30435.0,0.4514811]
[1688180323555,0.374517,30436.0,30435.0,0.0906811]
[1688180324269,0.374517,30436.0,30435.0,0.07183165]
[1688180324563,0.5382797,30436.0,30435.0,0.03388296]
[1688180325371,0.55654613,30436.0,30435.0,0.03388296]
[1688180326455,0.89339758,30436.0,30431.0,0.019721]
[1688180326656,0.37472,30432.0,30430.0,0.13143961]
[1688180326862,0.37132,30431.0,30430.0,0.15116061]
[1688180327061,0.37132,30431.0,30430.0,0.23722205]
[1688180327267,0.37132,30431.0,30430.0,0.59802205]
[1688180327268,0.3516,30431.0,30430.0,0.59802205]
[1688180327466,0.30228344,30431.0,30430.0,0.63510119]
[1688180327870,0.30228344,30431.0,30430.0,0.66185843]
[1688180328566,0.3521,30432.0,30430.0,1.18738207]
[1688180328771,0.00049292,30434.0,30431.0,0.43822383]
[1688180328972,0.00049292,30434.0,30433.0,0.51190215]
[1688180329274,0.35549292,30434.0,30433.0,0.380519]
[1688180329459,0.35549292,30434.0,30433.0,0.54898129]
[1688180329657,0.35549292,30434.0,30433.0,0.41759814]
[1688180329863,0.37521092,30434.0,30433.0,0.41759814]
[1688180332880,0.35549292,30434.0,30433.0,0.41759814]
[1688180333676,0.37521192,30434.0,30433.0,0.41759814]
[1688180334070,0.37521192,30434.0,30433.0,0.42156555]
[1688180336968,0.35549292,30434.0,30433.0,0.42156555]
[1688180337174,0.37521092,30434.0,30433.0,0.42156555]
[1688180338987,0.37521092,30434.0,30433.0,0.38448641]
[1688180340080,0.37521092,30434.0,30433.0,0.42156555]
[1688180342589,0.37521092,30434.0,30433.0,0.06076555]
[1688180342781,0.35549292,30434.0,30433.0,0.42156555]
[1688180344378,0.37520992,30434.0,30433.0,0.42156555]
[1688180344986,0.37520992,30434.0,30433.0,0.77346555]
[1688180344987,0.37230992,30434.0,30433.0,0.77346555]
[1688180346993,0.35259292,30434.0,30433.0,0.77346555]
[1688180347199,0.35259292,30434.0,30433.0,0.9048487]
[1688180348694,0.37231092,30434.0,30433.0,0.88661901]
[1688180348891,0.37231092,30434.0,30433.0,0.77346555]
[1688180353600,0.35259292,30434.0,30433.0,0.77346555]
[1688180354999,0.35549292,30434.0,30433.0,0.42156555]
[1688180356603,0.35549292,30434.0,30433.0,0.5529487]